fUST/lending_fUST_20241022
["ID","MTS","AMOUNT","RATE_DAILY","PERIOD"]
[340632383,1729559440443,-500.0,0.00016438,2]
[340632384,1729559440453,-500.0,0.00016438,2]
[340632385,1729559440463,-500.0,0.00016438,2]
[340632386,1729559440483,-500.0,0.00016438,2]
[340632387,1729559440494,-500.0,0.00016438,2]
[340632388,1729559440504,-500.0,0.00016438,2]
[340632389,1729559440514,-500.0,0.00016438,2]
[340632390,1729559440524,-500.0,0.00016438,2]
[340632391,1729559440534,-500.0,0.00016438,2]
[340632392,1729559440544,-258.03814758,0.00016438,2]
[340632393,1729559440554,-500.0,0.00016438,2]
[340632394,1729559440563,-500.0,0.00016438,2]
[340632395,1729559440574,-500.0,0.00016438,2]
[340632396,1729559440584,-500.0,0.00016438,2]
[340632397,1729559440594,-500.0,0.00016438,2]
[340632398,1729559440604,-500.0,0.00016438,2]
[340632399,1729559440617,-500.0,0.00016438,2]
[340632400,1729559440632,-500.0,0.00016438,2]
[340632401,1729559440642,-500.0,0.00016438,2]
[340632402,1729559440651,-500.0,0.00016438,2]
[340632403,1729559440661,-500.0,0.00016438,2]
[340632404,1729559440671,-721.0,0.00016438,2]
[340632405,1729559440681,-500.0,0.00016438,2]
[340632406,1729559440691,-500.0,0.00016438,2]
[340632407,1729559440701,-500.0,0.00016438,2]
[340632408,1729559440711,-500.0,0.00016438,2]
[340632409,1729559440721,-500.0,0.00016438,2]
[340632410,1729559440731,-500.0,0.00016438,2]
[340632411,1729559440741,-500.0,0.00016438,2]
[340632412,1729559440752,-500.0,0.00016438,2]
[340632413,1729559440763,-680.14,0.00016438,2]
[340632414,1729559440773,-500.0,0.00016438,2]
[340632415,1729559440785,-725.33,0.00016438,2]
[340632416,1729559440795,-500.0,0.00016438,2]
[340632417,1729559440805,-500.0,0.00016438,2]
[340632418,1729559440815,-500.29953849,0.00016438,2]
[340632419,1729559440826,-500.0,0.00016438,2]
[340632420,1729559440835,-500.73707659,0.00016438,2]
[340632421,1729559440845,-500.0,0.00016438,2]
[340632422,1729559440858,-500.0,0.00016438,2]
[340632423,1729559440868,-500.0,0.00016438,2]
[340632424,1729559440878,-500.0,0.00016438,2]
[340632425,1729559440888,-348.14159679,0.00016438,2]
[340632426,1729559440898,-500.0,0.00016438,2]
[340632427,1729559440908,-948.62,0.00016438,2]
[340632428,1729559440917,-500.0,0.00016438,2]
[340632429,1729559440927,-500.0,0.00016438,2]
[340632430,1729559440939,-500.0,0.00016438,2]
[340632431,1729559440948,-521.88034201,0.00016438,2]
[340632432,1729559440958,-500.0,0.00016438,2]
[340632433,1729559440969,-500.0,0.00016438,2]
[340632434,1729559440979,-500.0,0.00016438,2]
[340632435,1729559440990,-500.45812343,0.00016438,2]
[340632436,1729559440999,-500.0,0.00016438,2]
[340632437,1729559441010,-500.0,0.00016438,2]
[340632438,1729559441021,-664.9,0.00016438,2]
[340632439,1729559441031,-500.0,0.00016438,2]
[340632440,1729559441041,-500.0,0.00016438,2]
[340632441,1729559441051,-500.0,0.00016438,2]
[340632442,1729559441063,-517.29,0.00016438,2]
[340632443,1729559441073,-620.6,0.00016438,2]
[340632444,1729559441082,-500.0,0.00016438,2]
[340632445,1729559441092,-512.41,0.00016438,2]
[340632446,1729559441107,-500.0,0.00016438,2]
[340632447,1729559441117,-500.0,0.00016438,2]
[340632448,1729559441127,-650.06,0.00016438,2]
[340632449,1729559441138,-730.97,0.00016438,2]
[340632450,1729559441148,-618.73,0.00016438,2]
[340632451,1729559441158,-780.98,0.00016438,2]
[340632452,1729559441167,-635.56,0.00016438,2]
[340632453,1729559441177,-500.0,0.00016438,2]
[340632454,1729559441189,-783.97,0.00016438,2]
[340632455,1729559441199,-610.58,0.00016438,2]
[340632456,1729559441210,-597.77,0.00016438,2]
[340632457,1729559441220,-500.0,0.00016438,2]
[340632458,1729559441230,-500.0,0.00016438,2]
[340632459,1729559441239,-868.17,0.00016438,2]
[340632460,1729559441249,-500.0,0.00016438,2]
[340632461,1729559441259,-707.44,0.00016438,2]
[340632462,1729559441269,-500.0,0.00016438,2]
[340632463,1729559441279,-508.72,0.00016438,2]
[340632464,1729559441289,-697.8,0.00016438,2]
[340632465,1729559441299,-546.59,0.00016438,2]
[340632466,1729559441308,-200.0,0.00016438,2]
[340632467,1729559441318,-500.0,0.00016438,2]
[340632468,1729559441328,-500.0,0.00016438,2]
[340632469,1729559441338,-500.0,0.00016438,2]
[340632470,1729559441348,-500.0,0.00016438,2]
[340632471,1729559441360,-1357.35,0.00016438,2]
[340632472,1729559441370,-500.0,0.00016438,2]
[340632473,1729559441380,-500.0,0.00016438,2]
[340632474,1729559441390,-719.12,0.00016438,2]
[340632475,1729559441400,-699.1,0.00016438,2]
[340632476,1729559441410,-500.0,0.00016438,2]
[340632477,1729559441420,-500.0,0.00016438,2]
[340632478,1729559441430,-571.77,0.00016438,2]
[340632479,1729559441440,-500.0,0.00016438,2]
[340632480,1729559441450,-1332.11,0.00016438,2]
[340632481,1729559441460,-689.48,0.00016438,2]
[340632482,1729559441470,-500.0,0.00016438,2]
[340632483,1729559441480,-500.0,0.00016438,2]
[340632484,1729559441490,-500.0,0.00016438,2]
[340632485,1729559441500,-500.0,0.00016438,2]
[340632486,1729559441510,-500.0,0.00016438,2]
[340632487,1729559441520,-500.0,0.00016438,2]
[340632488,1729559441530,-762.28,0.00016438,2]
[340632489,1729559441540,-500.0,0.00016438,2]
[340632490,1729559441550,-500.0,0.00016438,2]
[340632491,1729559441560,-500.0,0.00016438,2]
[340632492,1729559441570,-500.0,0.00016438,2]
[340632493,1729559441581,-633.6,0.00016438,2]
[340632494,1729559441591,-500.0,0.00016438,2]
[340632495,1729559441601,-620.93,0.00016438,2]
[340632496,1729559441612,-500.0,0.00016438,2]
[340632497,1729559441622,-500.0,0.00016438,2]
[340632498,1729559441632,-151.0,0.00016438,2]
[340632499,1729559441642,-637.24,0.00016438,2]
[340632500,1729559441652,-500.0,0.00016438,2]
[340632501,1729559441662,-500.0,0.00016438,2]
[340632502,1729559441672,-500.0,0.00016438,2]
[340632503,1729559441682,-500.0,0.00016438,2]
[340632504,1729559441692,-500.0,0.00016438,2]
[340632505,1729559441702,-546.83,0.00016438,2]
[340632506,1729559441712,-500.0,0.00016438,2]
[340632507,1729559441722,-586.81,0.00016438,2]
[340632508,1729559441736,-757.53,0.00016438,2]
[340632509,1729559441747,-583.36,0.00016438,2]
[340632510,1729559441756,-510.83,0.00016438,2]
[340632511,1729559441767,-500.0,0.00016438,2]
[340632512,1729559441777,-500.0,0.00016438,2]
[340632513,1729559441791,-500.0,0.00016438,2]
[340632514,1729559441800,-869.47,0.00016438,2]
[340632515,1729559441811,-500.0,0.00016438,2]
[340632516,1729559441822,-500.0,0.00016438,2]
[340632517,1729559441832,-500.0,0.00016438,2]
[340632518,1729559441842,-588.58,0.00016438,2]
[340632519,1729559441852,-500.0,0.00016438,2]
[340632520,1729559441863,-500.0,0.00016438,2]
[340632521,1729559441875,-500.0,0.00016438,2]
[340632522,1729559441885,-500.0,0.00016438,2]
[340632523,1729559441895,-1065.49,0.00016438,2]
[340632524,1729559441905,-500.0,0.00016438,2]
[340632525,1729559441915,-500.0,0.00016438,2]
[340632526,1729559441925,-633.55314578,0.00016438,2]
[340632527,1729559441936,-636.23,0.00016438,2]
[340632528,1729559441946,-500.0,0.00016438,2]
[340632529,1729559441956,-500.0,0.00016438,2]
[340632530,1729559441967,-1125.2,0.00016438,2]
[340632531,1729559441977,-500.0,0.00016438,2]
[340632532,1729559441987,-500.0,0.00016438,2]
[340632533,1729559441997,-500.0,0.00016438,2]
[340632534,1729559442007,-500.0,0.00016438,2]
[340632535,1729559442019,-500.0,0.00016438,2]
[340632536,1729559442029,-500.0,0.00016438,2]
[340632537,1729559442039,-500.0,0.00016438,2]
[340632538,1729559442049,-913.84,0.00016438,2]
[340632539,1729559442059,-894.25,0.00016438,2]
[340632540,1729559442069,-500.0,0.00016438,2]
[340632541,1729559442080,-500.0,0.00016438,2]
[340632542,1729559442090,-551.14,0.00016438,2]
[340632543,1729559442100,-602.76,0.00016438,2]
[340632544,1729559442112,-500.0,0.00016438,2]
[340632545,1729559442122,-500.0,0.00016438,2]
[340632546,1729559442132,-1257.55,0.00016438,2]
[340632547,1729559442142,-571.0,0.00016438,2]
[340632548,1729559442152,-581.17,0.00016438,2]
[340632549,1729559442161,-500.0,0.00016438,2]
[340632550,1729559442171,-500.0,0.00016438,2]
[340632551,1729559442181,-544.77,0.00016438,2]
[340632552,1729559442190,-500.0,0.00016438,2]
[340632553,1729559442200,-500.0,0.00016438,2]
[340632554,1729559442211,-172.345352,0.00016438,2]
[340632555,1729559442221,-500.0,0.00016438,2]
[340632556,1729559442232,-500.0,0.00016438,2]
[340632557,1729559442242,-573.64,0.00016438,2]
[340632558,1729559442253,-500.0,0.00016438,2]
[340632559,1729559442263,-500.0,0.00016438,2]
[340632560,1729559442273,-151.0,0.00016438,2]
[340632561,1729559442282,-500.0,0.00016438,2]
[340632562,1729559442292,-151.0,0.00016438,2]
[340632563,1729559442302,-151.0,0.00016438,2]
[340632564,1729559442312,-151.0,0.00016438,2]
[340632565,1729559442321,-500.0,0.00016438,2]
[340632566,1729559442331,-540.25,0.00016438,2]
[340632567,1729559442341,-579.2,0.00016438,2]
[340632568,1729559442350,-500.0,0.00016438,2]
[340632569,1729559442362,-1195.12,0.00016438,2]
[340632570,1729559442372,-500.0,0.00016438,2]
[340632571,1729559442382,-500.0,0.00016438,2]
[340632572,1729559442392,-3000.0,0.00016438,2]
[340632573,1729559442402,-2586.931946,0.00016438,2]
[340632574,1729559442412,-836.97,0.00016438,2]
[340632575,1729559442423,-500.0,0.00016438,2]
[340632576,1729559442433,-500.0,0.00016438,2]
[340632578,1729559442443,-1582.65,0.00016438,2]
[340632580,1729559442454,-1397.82,0.00016438,2]
[340632581,1729559442465,-500.0,0.00016438,2]
[340632582,1729559442476,-855.96,0.00016438,2]
[340632583,1729559442487,-499.1418553,0.00016438,2]
[340632584,1729559442496,-500.0,0.00016438,2]
[340632585,1729559442506,-598.96,0.00016438,2]
[340632587,1729559442516,-500.0,0.00016438,2]
[340632588,1729559442525,-759.92,0.00016438,2]
[340632589,1729559442535,-500.0,0.00016438,2]
[340632590,1729559442545,-1301.22,0.00016438,2]
[340632591,1729559442554,-500.0,0.00016438,2]
[340632592,1729559442564,-151.0,0.00016438,2]
[340632593,1729559442574,-151.0,0.00016438,2]
[340632595,1729559442584,-151.655907,0.00016438,2]
[340632596,1729559442594,-151.0,0.00016438,2]
[340632597,1729559442605,-151.0,0.00016438,2]
[340632598,1729559442615,-864.22,0.00016438,2]
[340632599,1729559442626,-500.0,0.00016438,2]
[340632600,1729559442636,-812.04,0.00016438,2]
[340632601,1729559442646,-701.25,0.00016438,2]
[340632602,1729559442656,-616.31,0.00016438,2]
[340632603,1729559442666,-839.02,0.00016438,2]
[340632604,1729559442676,-500.0,0.00016438,2]
[340632605,1729559442686,-638.53,0.00016438,2]
[340632606,1729559442696,-166.36073132,0.00016438,2]
[340632607,1729559442706,-500.0,0.00016438,2]
[340632608,1729559442716,-500.0,0.00016438,2]
[340632609,1729559442726,-500.0,0.00016438,2]
[340632611,1729559442736,-814.97,0.00016438,2]
[340632613,1729559442746,-1815.85,0.00016438,2]
[340632615,1729559442756,-739.53,0.00016438,2]
[340632616,1729559442767,-640.55,0.00016438,2]
[340632617,1729559442777,-500.0,0.00016438,2]
[340632618,1729559442790,-500.0,0.00016438,2]
[340632619,1729559442800,-701.24,0.00016438,2]
[340632621,1729559442810,-846.83,0.00016438,2]
[340632623,1729559442820,-500.0,0.00016438,2]
[340632624,1729559442830,-151.0,0.00016438,2]
[340632626,1729559442840,-151.0,0.00016438,2]
[340632627,1729559442850,-151.0,0.00016438,2]
[340632628,1729559442864,-151.0,0.00016438,2]
[340632629,1729559442874,-931.52,0.00016438,2]
[340632630,1729559442884,-151.0,0.00016438,2]
[340632632,1729559442895,-606.74,0.00016438,2]
[340632634,1729559442905,-151.0,0.00016438,2]
[340632635,1729559442915,-151.0,0.00016438,2]
[340632636,1729559442925,-760.72,0.00016438,2]
[340632637,1729559442936,-151.0,0.00016438,2]
[340632638,1729559442946,-871.0,0.00016438,2]
[340632639,1729559442958,-151.0,0.00016438,2]
[340632640,1729559442968,-1550.03,0.00016438,2]
[340632641,1729559442979,-700.97,0.00016438,2]
[340632642,1729559442989,-500.0,0.00016438,2]
[340632643,1729559443001,-1381.49,0.00016438,2]
[340632644,1729559443011,-515.62,0.00016438,2]
[340632645,1729559443023,-500.0,0.00016438,2]
[340632646,1729559443034,-579.44,0.00016438,2]
[340632647,1729559443309,-500.0,0.00016438,2]
[340632648,1729559443320,-500.0,0.00016438,2]
[340632649,1729559443330,-781.5,0.00016438,2]
[340632650,1729559443339,-1055.13,0.00016438,2]
[340632651,1729559443349,-1088.29,0.00016438,2]
[340632652,1729559443359,-739.58,0.00016438,2]
[340632653,1729559443369,-500.0,0.00016438,2]
[340632654,1729559443379,-788.04,0.00016438,2]
[340632655,1729559443389,-500.0,0.00016438,2]
[340632656,1729559443398,-500.0,0.00016438,2]
[340632657,1729559443408,-1261.51,0.00016438,2]
[340632658,1729559443417,-890.88,0.00016438,2]
[340632659,1729559443427,-500.0,0.00016438,2]
[340632660,1729559443436,-500.0,0.00016438,2]
[340632661,1729559443446,-610.37,0.00016438,2]
[340632662,1729559443456,-500.0,0.00016438,2]
[340632663,1729559443465,-500.0,0.00016438,2]
[340632664,1729559443475,-500.0,0.00016438,2]
[340632665,1729559443485,-500.0,0.00016438,2]
[340632666,1729559443494,-1000.0,0.00016438,2]
[340632667,1729559443504,-208.245802,0.00016438,2]
[340632668,1729559443514,-500.0,0.00016438,2]
[340632669,1729559443523,-623.18,0.00016438,2]
[340632670,1729559443533,-2148.95,0.00016438,2]
[340632671,1729559443543,-500.0,0.00016438,2]
[340632672,1729559443553,-863.53,0.00016438,2]
[340632673,1729559443562,-500.0,0.00016438,2]
[340632674,1729559443572,-6488.01,0.00016438,2]
[340632675,1729559443581,-500.0,0.00016438,2]
[340632676,1729559443591,-511.35,0.00016438,2]
[340632677,1729559443600,-500.0,0.00016438,2]
[340632678,1729559443611,-574.35,0.00016438,2]
[340632679,1729559443621,-1172.24,0.00016438,2]
[340632680,1729559443631,-500.0,0.00016438,2]
[340632681,1729559443641,-500.0,0.00016438,2]
[340632682,1729559443650,-500.0,0.00016438,2]
[340632683,1729559443659,-500.0,0.00016438,2]
[340632684,1729559443669,-3948.94,0.00016438,2]
[340632685,1729559443679,-500.0,0.00016438,2]
[340632686,1729559443688,-2158.99,0.00016438,2]
[340632687,1729559443697,-500.0,0.00016438,2]
[340632688,1729559443707,-579.24,0.00016438,2]
[340632689,1729559443716,-500.0,0.00016438,2]
[340632690,1729559443726,-643.04,0.00016438,2]
[340632691,1729559443735,-500.0,0.00016438,2]
[340632692,1729559443745,-500.0,0.00016438,2]
[340632693,1729559443754,-788.62,0.00016438,2]
[340632694,1729559443764,-500.0,0.00016438,2]
[340632695,1729559443774,-745.92,0.00016438,2]
[340632696,1729559443785,-18724.41,0.00016438,2]
[340632697,1729559443795,-949.78,0.00016438,2]
[340632698,1729559443805,-500.0,0.00016438,2]
[340632699,1729559443814,-957.02,0.00016438,2]
[340632700,1729559443824,-800.44,0.00016438,2]
[340632701,1729559443835,-500.0,0.00016438,2]
[340632702,1729559443845,-674.94,0.00016438,2]
[340632703,1729559443856,-500.0,0.00016438,2]
[340632704,1729559443866,-3745.18,0.00016438,2]
[340632705,1729559443876,-8553.9,0.00016438,2]
[340632706,1729559443886,-206.0,0.00016499,2]
[340632707,1729559443896,-153.0,0.000165,2]
[340632708,1729559443905,-1626.07149171,0.00016612,2]
[340632709,1729559443915,-150.0,0.00016616,2]
[340632710,1729559443924,-527.0,0.00016616,2]
[340632711,1729559443936,-1152.0,0.00016616,2]
[340632712,1729559443945,-1782.504,0.00016616,2]
[340632713,1729559443956,-3803.7632096,0.00016625,2]
[340632714,1729559443965,-151.0,0.00016702,2]
[340632715,1729559443975,-151.0,0.00016702,2]
[340632716,1729559443985,-151.0,0.00016702,2]
[340632717,1729559443995,-17950.22029699,0.00016702,2]
[340632718,1729559444224,-19489.06571381,0.00016702,2]
[340632719,1729559444234,-8256.59980416,0.00016702,2]
[340632720,1729559444245,-512.6630634,0.00016712,2]
[340632721,1729559444254,-500.0,0.00016712,2]
[340632722,1729559444264,-500.0,0.00016712,2]
[340632723,1729559444274,-500.0,0.00016712,2]
[340632724,1729559444284,-500.0,0.00016712,2]
[340632725,1729559444293,-500.0,0.00016712,2]
[340632726,1729559444303,-500.0,0.00016712,2]
[340632727,1729559444313,-500.0,0.00016712,2]
[340632728,1729559444323,-721.0,0.00016712,2]
[340632729,1729559444333,-500.0,0.00016712,2]
[340632730,1729559444343,-500.0,0.00016712,2]
[340632731,1729559444353,-274.18804221,0.00016712,2]
[340632732,1729559444365,-500.0,0.00016712,2]
[340632733,1729559444375,-500.0,0.00016712,2]
[340632734,1729559444385,-500.0,0.00016712,2]
[340632735,1729559444395,-680.14,0.00016712,2]
[340632736,1729559444405,-500.0,0.00016712,2]
[340632737,1729559444416,-725.33,0.00016712,2]
[340632738,1729559444426,-500.0,0.00016712,2]
[340632739,1729559444436,-500.0,0.00016712,2]
[340632740,1729559444447,-500.0,0.00016712,2]
[340632741,1729559444458,-500.0,0.00016712,2]
[340632742,1729559444468,-948.62,0.00016712,2]
[340632743,1729559444479,-473.96808475,0.00016712,2]
[340632744,1729559444492,-26.03191525,0.00016712,2]
[340632745,1729559444502,-500.0,0.00016712,2]
[340632746,1729559444511,-500.0,0.00016712,2]
[340632747,1729559444521,-664.9,0.00016712,2]
[340632748,1729559444532,-500.0,0.00016712,2]
[340632749,1729559444542,-500.0,0.00016712,2]
[340632750,1729559444552,-500.0,0.00016712,2]
[340632751,1729559444561,-517.29,0.00016712,2]
[340632752,1729559444571,-620.6,0.00016712,2]
[340632753,1729559444581,-500.0,0.00016712,2]
[340632754,1729559444592,-512.41,0.00016712,2]
[340632755,1729559444601,-500.0,0.00016712,2]
[340632756,1729559444617,-500.0,0.00016712,2]
[340632757,1729559444627,-650.06,0.00016712,2]
[340632758,1729559444637,-730.97,0.00016712,2]
[340632759,1729559444647,-618.73,0.00016712,2]
[340632760,1729559444657,-780.98,0.00016712,2]
[340632761,1729559444667,-635.56,0.00016712,2]
[340632762,1729559444676,-500.0,0.00016712,2]
[340632763,1729559444686,-783.97,0.00016712,2]
[340632764,1729559444695,-610.58,0.00016712,2]
[340632765,1729559444706,-597.77,0.00016712,2]
[340632766,1729559444715,-500.0,0.00016712,2]
[340632767,1729559444725,-500.0,0.00016712,2]
[340632768,1729559444735,-868.17,0.00016712,2]
[340632769,1729559444746,-500.0,0.00016712,2]
[340632770,1729559444756,-707.44,0.00016712,2]
[340632771,1729559444766,-500.0,0.00016712,2]
[340632772,1729559444776,-508.72,0.00016712,2]
[340632773,1729559444790,-697.8,0.00016712,2]
[340632774,1729559444800,-546.59,0.00016712,2]
[340632775,1729559444810,-200.0,0.00016712,2]
[340632776,1729559444820,-500.0,0.00016712,2]
[340632777,1729559444830,-500.0,0.00016712,2]
[340632778,1729559444840,-500.0,0.00016712,2]
[340632779,1729559444850,-500.0,0.00016712,2]
[340632780,1729559444861,-1357.35,0.00016712,2]
[340632781,1729559444872,-500.0,0.00016712,2]
[340632782,1729559444883,-500.0,0.00016712,2]
[340632783,1729559444893,-719.12,0.00016712,2]
[340632784,1729559444904,-699.1,0.00016712,2]
[340632785,1729559444915,-500.0,0.00016712,2]
[340632786,1729559444926,-500.0,0.00016712,2]
[340632787,1729559444937,-571.77,0.00016712,2]
[340632788,1729559444947,-500.0,0.00016712,2]
[340632789,1729559444957,-1332.11,0.00016712,2]
[340632790,1729559444966,-689.48,0.00016712,2]
[340632791,1729559444976,-500.0,0.00016712,2]
[340632792,1729559444986,-500.0,0.00016712,2]
[340632793,1729559444996,-500.0,0.00016712,2]
[340632794,1729559445006,-500.0,0.00016712,2]
[340632795,1729559445017,-519.10434203,0.00016712,2]
[340632796,1729559445027,-500.0,0.00016712,2]
[340632797,1729559445037,-762.28,0.00016712,2]
[340632798,1729559445047,-500.0,0.00016712,2]
[340632799,1729559445057,-500.0,0.00016712,2]
[340632800,1729559445067,-500.0,0.00016712,2]
[340632801,1729559445076,-500.0,0.00016712,2]
[340632802,1729559445086,-633.6,0.00016712,2]
[340632803,1729559445096,-500.0,0.00016712,2]
[340632804,1729559445107,-620.93,0.00016712,2]
[340632805,1729559445116,-500.0,0.00016712,2]
[340632806,1729559445126,-500.0,0.00016712,2]
[340632807,1729559445136,-637.24,0.00016712,2]
[340632808,1729559445146,-500.0,0.00016712,2]
[340632809,1729559445156,-500.0,0.00016712,2]
[340632810,1729559445168,-500.0,0.00016712,2]
[340632811,1729559445177,-500.0,0.00016712,2]
[340632812,1729559445187,-500.0,0.00016712,2]
[340632813,1729559445197,-546.83,0.00016712,2]
[340632814,1729559445207,-500.0,0.00016712,2]
[340632815,1729559445217,-586.81,0.00016712,2]
[340632816,1729559445227,-757.53,0.00016712,2]
[340632817,1729559445238,-583.36,0.00016712,2]
[340632818,1729559445248,-510.83,0.00016712,2]
[340632819,1729559445258,-500.0,0.00016712,2]
[340632820,1729559445268,-500.0,0.00016712,2]
[340632821,1729559445279,-500.0,0.00016712,2]
[340632822,1729559445289,-869.47,0.00016712,2]
[340632823,1729559445300,-500.0,0.00016712,2]
[340632824,1729559445310,-500.0,0.00016712,2]
[340632825,1729559445321,-500.0,0.00016712,2]
[340632826,1729559445330,-588.58,0.00016712,2]
[340632827,1729559445340,-500.0,0.00016712,2]
[340632828,1729559445349,-500.0,0.00016712,2]
[340632829,1729559445360,-500.0,0.00016712,2]
[340632830,1729559445370,-500.0,0.00016712,2]
[340632831,1729559445379,-1065.49,0.00016712,2]
[340632832,1729559445389,-500.0,0.00016712,2]
[340632833,1729559445399,-500.0,0.00016712,2]
[340632834,1729559445408,-112.58060771,0.00016712,2]
[340632863,1729559446210,-500.0,0.00016438,2]
[340632864,1729559446220,-523.64939229,0.00016712,2]
[340632865,1729559446229,-500.0,0.00016712,2]
[340632866,1729559446239,-500.0,0.00016712,2]
[340632867,1729559446248,-1125.2,0.00016712,2]
[340632868,1729559446257,-500.0,0.00016712,2]
[340632869,1729559446268,-500.0,0.00016712,2]
[340632870,1729559446277,-500.0,0.00016712,2]
[340632871,1729559446286,-500.0,0.00016712,2]
[340632872,1729559446295,-500.0,0.00016712,2]
[340632873,1729559446304,-500.0,0.00016712,2]
[340632874,1729559446313,-500.0,0.00016712,2]
[340632875,1729559446322,-913.84,0.00016712,2]
[340632876,1729559446331,-894.25,0.00016712,2]
[340632877,1729559446341,-500.0,0.00016712,2]
[340632878,1729559446350,-500.0,0.00016712,2]
[340632879,1729559446360,-551.14,0.00016712,2]
[340632880,1729559446369,-602.76,0.00016712,2]
[340632881,1729559446378,-500.0,0.00016712,2]
[340632882,1729559446387,-500.0,0.00016712,2]
[340632883,1729559446397,-1257.55,0.00016712,2]
[340632884,1729559446406,-571.0,0.00016712,2]
[340632885,1729559446415,-581.17,0.00016712,2]
[340632886,1729559446424,-500.0,0.00016712,2]
[340632887,1729559446434,-500.0,0.00016712,2]
[340632888,1729559446443,-544.77,0.00016712,2]
[340632889,1729559446452,-500.0,0.00016712,2]
[340632890,1729559446462,-500.0,0.00016712,2]
[340632891,1729559446471,-500.0,0.00016712,2]
[340632892,1729559446480,-500.0,0.00016712,2]
[340632893,1729559446490,-573.64,0.00016712,2]
[340632894,1729559446500,-500.0,0.00016712,2]
[340632895,1729559446510,-500.0,0.00016712,2]
[340632896,1729559446520,-500.0,0.00016712,2]
[340632897,1729559446529,-190.882524,0.00016712,2]
[340632898,1729559446539,-500.0,0.00016712,2]
[340632899,1729559446549,-579.2,0.00016712,2]
[340632900,1729559446558,-540.25,0.00016712,2]
[340632901,1729559446568,-500.0,0.00016712,2]
[340632902,1729559446580,-1195.12,0.00016712,2]
[340632903,1729559446590,-500.0,0.00016712,2]
[340632904,1729559446600,-836.97,0.00016712,2]
[340632905,1729559446610,-500.0,0.00016712,2]
[340632906,1729559446619,-1582.65,0.00016712,2]
[340632907,1729559446629,-1397.82,0.00016712,2]
[340632908,1729559446639,-500.0,0.00016712,2]
[340632909,1729559446648,-855.96,0.00016712,2]
[340632910,1729559446658,-500.0,0.00016712,2]
[340632911,1729559446667,-598.96,0.00016712,2]
[340632912,1729559446677,-500.0,0.00016712,2]
[340632913,1729559446686,-759.92,0.00016712,2]
[340632914,1729559446695,-500.0,0.00016712,2]
[340632915,1729559446705,-1301.22,0.00016712,2]
[340632916,1729559446715,-500.0,0.00016712,2]
[340632917,1729559446724,-864.22,0.00016712,2]
[340632918,1729559446734,-500.0,0.00016712,2]
[340632919,1729559446745,-812.04,0.00016712,2]
[340632920,1729559446754,-701.25,0.00016712,2]
[340632921,1729559446764,-616.31,0.00016712,2]
[340632922,1729559446773,-839.02,0.00016712,2]